[Event "Titled Tuesday Blitz August 16 Late 2022"]
[White "Medeiros Jr, Francisco De Assis"]
[Black "Bayo Milagro, Alvaro"]
[WhiteFideId "2114267"]
[BlackFideId "22275240"]
[WhiteElo "2020"]
[BlackElo "2270"]
[Result "0-1"]
[Round "04"]
[TimeControl "180+1"]
[Date "2022.08.18"]
[WhiteClock "0:00:00"]
[BlackClock "0:00:00"]

1. d4 {[%clk 0:00:00]}  Nf6 {[%clk 0:00:00]} 2. Nf3 {[%clk 0:00:00]}  e6 {[%clk 0:00:00]} 3. Bg5 {[%clk 0:00:00]}  c5 {[%clk 0:00:00]} 4. c3 {[%clk 0:00:00]}  h6 {[%clk 0:00:00]} 5. Bh4 {[%clk 0:00:00]}  b6 {[%clk 0:00:00]} 6. Nbd2 {[%clk 0:00:00]}  Bb7 {[%clk 0:00:00]} 7. e3 {[%clk 0:00:00]}  Be7 {[%clk 0:00:00]} 8. Bd3 {[%clk 0:00:00]}  Nc6 {[%clk 0:00:00]} 9. O-O {[%clk 0:00:00]}  cxd4 {[%clk 0:00:00]} 10. cxd4 {[%clk 0:00:00]}  O-O {[%clk 0:00:00]} 11. Rc1 {[%clk 0:00:00]}  Rc8 {[%clk 0:00:00]} 12. a3 {[%clk 0:00:00]}  Nd5 {[%clk 0:00:00]} 13. Bxe7 {[%clk 0:00:00]}  Qxe7 {[%clk 0:00:00]} 14. Qe2 {[%clk 0:00:00]}  d6 {[%clk 0:00:00]} 15. Ba6 {[%clk 0:00:00]}  Na5 {[%clk 0:00:00]} 16. Bxb7 {[%clk 0:00:00]}  Qxb7 {[%clk 0:00:00]} 17. Qd3 {[%clk 0:00:00]}  Rxc1 {[%clk 0:00:00]} 18. Rxc1 {[%clk 0:00:00]}  Rc8 {[%clk 0:00:00]} 19. Qb1 {[%clk 0:00:00]}  Rc7 {[%clk 0:00:00]} 20. Kf1 {[%clk 0:00:00]}  Qa6+ {[%clk 0:00:00]} 21. Kg1 {[%clk 0:00:00]}  Qc8 {[%clk 0:00:00]} 22. Rxc7 {[%clk 0:00:00]}  Qxc7 {[%clk 0:00:00]} 23. g3 {[%clk 0:00:00]}  g6 {[%clk 0:00:00]} 24. Kg2 {[%clk 0:00:00]}  Kg7 {[%clk 0:00:00]} 25. Qd3 {[%clk 0:00:00]}  Qc6 {[%clk 0:00:00]} 26. h4 {[%clk 0:00:00]}  Nb7 {[%clk 0:00:00]} 27. Qc4 {[%clk 0:00:00]}  Qd7 {[%clk 0:00:00]} 28. e4 {[%clk 0:00:00]}  Nf6 {[%clk 0:00:00]} 29. e5 {[%clk 0:00:00]}  dxe5 {[%clk 0:00:00]} 30. Nxe5 {[%clk 0:00:00]}  Qd6 {[%clk 0:00:00]} 31. Ndf3 {[%clk 0:00:00]}  Na5 {[%clk 0:00:00]} 32. Qc8 {[%clk 0:00:00]}  Qe7 {[%clk 0:00:00]} 33. b4 {[%clk 0:00:00]}  Nb3 {[%clk 0:00:00]} 34. Nc6 {[%clk 0:00:00]}  Qd6 {[%clk 0:00:00]} 35. Nfe5 {[%clk 0:00:00]}  Nxd4 {[%clk 0:00:00]} 36. Nxd4 {[%clk 0:00:00]}  Qxe5 {[%clk 0:00:00]} 37. Nc6 {[%clk 0:00:00]}  Qd5+ {[%clk 0:00:00]} 38. Kg1 {[%clk 0:00:00]}  Ne4 {[%clk 0:00:00]} 39. Ne7 {[%clk 0:00:00]}  Qd2 {[%clk 0:00:00]} 0-1


[Site "https://www.chess.com"]

[Event "Titled Tuesday Blitz August 16 Late 2022"]
[White "Melkumyan, Hrant"]
[Black "Petrovic, Aleksa"]
[WhiteFideId "13302485"]
[BlackFideId "967629"]
[WhiteElo "2604"]
[BlackElo "2262"]
[Result "1-0"]
[Round "04"]
[TimeControl "180+1"]
[Date "2022.08.18"]
[WhiteClock "0:00:00"]
[BlackClock "0:00:00"]

1. e4 {[%clk 0:00:00]}  e6 {[%clk 0:00:00]} 2. d4 {[%clk 0:00:00]}  d5 {[%clk 0:00:00]} 3. Nd2 {[%clk 0:00:00]}  Nc6 {[%clk 0:00:00]} 4. Ngf3 {[%clk 0:00:00]}  Nf6 {[%clk 0:00:00]} 5. exd5 {[%clk 0:00:00]}  exd5 {[%clk 0:00:00]} 6. Bb5 {[%clk 0:00:00]}  Be7 {[%clk 0:00:00]} 7. O-O {[%clk 0:00:00]}  O-O {[%clk 0:00:00]} 8. Re1 {[%clk 0:00:00]}  Bg4 {[%clk 0:00:00]} 9. c3 {[%clk 0:00:00]}  Re8 {[%clk 0:00:00]} 10. Nf1 {[%clk 0:00:00]}  Bd6 {[%clk 0:00:00]} 11. Rxe8+ {[%clk 0:00:00]}  Qxe8 {[%clk 0:00:00]} 12. Bd3 {[%clk 0:00:00]}  Ne4 {[%clk 0:00:00]} 13. Ne3 {[%clk 0:00:00]}  Bh5 {[%clk 0:00:00]} 14. Nxd5 {[%clk 0:00:00]}  Rd8 {[%clk 0:00:00]} 15. Nf4 {[%clk 0:00:00]}  Bxf3 {[%clk 0:00:00]} 16. Qxf3 {[%clk 0:00:00]}  Ng5 {[%clk 0:00:00]} 17. Qe2 {[%clk 0:00:00]}  Qd7 {[%clk 0:00:00]} 18. Be3 {[%clk 0:00:00]}  Re8 {[%clk 0:00:00]} 19. Qh5 {[%clk 0:00:00]}  Ne4 {[%clk 0:00:00]} 20. Re1 {[%clk 0:00:00]}  Nf6 {[%clk 0:00:00]} 21. Qd1 {[%clk 0:00:00]}  Ng4 {[%clk 0:00:00]} 22. Bc1 {[%clk 0:00:00]}  Rxe1+ {[%clk 0:00:00]} 23. Qxe1 {[%clk 0:00:00]}  g5 {[%clk 0:00:00]} 24. f3 {[%clk 0:00:00]}  Nxh2 {[%clk 0:00:00]} 25. Nh5 {[%clk 0:00:00]}  Nxf3+ {[%clk 0:00:00]} 26. gxf3 {[%clk 0:00:00]}  Qh3 {[%clk 0:00:00]} 27. Qe8+ {[%clk 0:00:00]}  Bf8 {[%clk 0:00:00]} 28. Bxh7+ {[%clk 0:00:00]}  Kxh7 {[%clk 0:00:00]} 29. Qxf7+ {[%clk 0:00:00]}  Kh6 {[%clk 0:00:00]} 30. Qxf8+ {[%clk 0:00:00]} 1-0


[Site "https://www.chess.com"]

[Event "Titled Tuesday Blitz August 16 Late 2022"]
[White "Mendez Fortes, Eduardo Jesus"]
[Black "Bochnicka, Vladimir"]
[WhiteFideId "3502376"]
[BlackFideId "14943450"]
[WhiteElo "2307"]
[BlackElo "1939"]
[Result "1-0"]
[Round "04"]
[TimeControl "180+1"]
[Date "2022.08.18"]
[WhiteClock "0:00:00"]
[BlackClock "0:00:00"]

1. e4 {[%clk 0:00:00]}  c5 {[%clk 0:00:00]} 2. Nf3 {[%clk 0:00:00]}  Nc6 {[%clk 0:00:00]} 3. d4 {[%clk 0:00:00]}  cxd4 {[%clk 0:00:00]} 4. Nxd4 {[%clk 0:00:00]}  e5 {[%clk 0:00:00]} 5. Nb5 {[%clk 0:00:00]}  d6 {[%clk 0:00:00]} 6. N1c3 {[%clk 0:00:00]}  a6 {[%clk 0:00:00]} 7. Na3 {[%clk 0:00:00]}  Be7 {[%clk 0:00:00]} 8. Nd5 {[%clk 0:00:00]}  Nf6 {[%clk 0:00:00]} 9. Nxf6+ {[%clk 0:00:00]}  Bxf6 {[%clk 0:00:00]} 10. Nc4 {[%clk 0:00:00]}  O-O {[%clk 0:00:00]} 11. a4 {[%clk 0:00:00]}  Be6 {[%clk 0:00:00]} 12. Ne3 {[%clk 0:00:00]}  Bg5 {[%clk 0:00:00]} 13. c3 {[%clk 0:00:00]}  Bxe3 {[%clk 0:00:00]} 14. Bxe3 {[%clk 0:00:00]}  d5 {[%clk 0:00:00]} 15. exd5 {[%clk 0:00:00]}  Bxd5 {[%clk 0:00:00]} 16. Qc2 {[%clk 0:00:00]}  Qh4 {[%clk 0:00:00]} 17. O-O-O {[%clk 0:00:00]}  Be6 {[%clk 0:00:00]} 18. g3 {[%clk 0:00:00]}  Qe7 {[%clk 0:00:00]} 19. Bg2 {[%clk 0:00:00]}  Rfc8 {[%clk 0:00:00]} 20. Bb6 {[%clk 0:00:00]}  Nb4 {[%clk 0:00:00]} 21. Qe4 {[%clk 0:00:00]}  Na2+ {[%clk 0:00:00]} 22. Kb1 {[%clk 0:00:00]}  Bb3 {[%clk 0:00:00]} 23. Rd2 {[%clk 0:00:00]}  Rc6 {[%clk 0:00:00]} 24. Be3 {[%clk 0:00:00]}  Rac8 {[%clk 0:00:00]} 25. Bh3 {[%clk 0:00:00]}  R8c7 {[%clk 0:00:00]} 26. Qd3 {[%clk 0:00:00]}  h6 {[%clk 0:00:00]} 27. Qd8+ {[%clk 0:00:00]}  Qxd8 {[%clk 0:00:00]} 28. Rxd8+ {[%clk 0:00:00]}  Kh7 {[%clk 0:00:00]} 29. Bf5+ {[%clk 0:00:00]}  g6 {[%clk 0:00:00]} 30. Be4 {[%clk 0:00:00]}  Rc4 {[%clk 0:00:00]} 31. Bd5 {[%clk 0:00:00]}  Rxc3 {[%clk 0:00:00]} 32. Bxb3 {[%clk 0:00:00]}  Rxb3 {[%clk 0:00:00]} 33. Kxa2 {[%clk 0:00:00]}  Rb4 {[%clk 0:00:00]} 34. Ka3 {[%clk 0:00:00]}  a5 {[%clk 0:00:00]} 35. Rhd1 {[%clk 0:00:00]}  Rcc4 {[%clk 0:00:00]} 36. b3 {[%clk 0:00:00]}  Rc3 {[%clk 0:00:00]} 37. Rb1 {[%clk 0:00:00]}  Kg7 {[%clk 0:00:00]} 38. Bd2 {[%clk 0:00:00]}  Rd4 {[%clk 0:00:00]} 39. Rxd4 {[%clk 0:00:00]}  exd4 {[%clk 0:00:00]} 40. Bxc3 {[%clk 0:00:00]}  dxc3 {[%clk 0:00:00]} 41. Rc1 {[%clk 0:00:00]} 1-0


[Site "https://www.chess.com"]

[Event "Titled Tuesday Blitz August 16 Late 2022"]
[White "Michalski, Olaf"]
[Black "Thomforde-Toates, Noah"]
[WhiteFideId "1106740"]
[BlackFideId "30951992"]
[WhiteElo "1937"]
[BlackElo "2124"]
[Result "0-1"]
[Round "04"]
[TimeControl "180+1"]
[Date "2022.08.18"]
[WhiteClock "0:00:00"]
[BlackClock "0:00:00"]

1. d4 {[%clk 0:00:00]}  Nf6 {[%clk 0:00:00]} 2. c4 {[%clk 0:00:00]}  g6 {[%clk 0:00:00]} 3. Nc3 {[%clk 0:00:00]}  Bg7 {[%clk 0:00:00]} 4. e4 {[%clk 0:00:00]}  d6 {[%clk 0:00:00]} 5. Nf3 {[%clk 0:00:00]}  O-O {[%clk 0:00:00]} 6. Be2 {[%clk 0:00:00]}  e5 {[%clk 0:00:00]} 7. d5 {[%clk 0:00:00]}  a5 {[%clk 0:00:00]} 8. O-O {[%clk 0:00:00]}  Na6 {[%clk 0:00:00]} 9. Bg5 {[%clk 0:00:00]}  h6 {[%clk 0:00:00]} 10. Bh4 {[%clk 0:00:00]}  Qe8 {[%clk 0:00:00]} 11. Nd2 {[%clk 0:00:00]}  Nh7 {[%clk 0:00:00]} 12. a3 {[%clk 0:00:00]}  h5 {[%clk 0:00:00]} 13. f3 {[%clk 0:00:00]}  Bf6 {[%clk 0:00:00]} 14. Bf2 {[%clk 0:00:00]}  Bd7 {[%clk 0:00:00]} 15. b4 {[%clk 0:00:00]}  axb4 {[%clk 0:00:00]} 16. axb4 {[%clk 0:00:00]}  Nxb4 {[%clk 0:00:00]} 17. Qb3 {[%clk 0:00:00]}  c5 {[%clk 0:00:00]} 18. dxc6 {[%clk 0:00:00]}  Nxc6 {[%clk 0:00:00]} 19. Qxb7 {[%clk 0:00:00]}  Rxa1 {[%clk 0:00:00]} 20. Rxa1 {[%clk 0:00:00]}  Nd4 {[%clk 0:00:00]} 21. Bf1 {[%clk 0:00:00]}  Be6 {[%clk 0:00:00]} 22. Nd5 {[%clk 0:00:00]}  Bg5 {[%clk 0:00:00]} 23. Nb3 {[%clk 0:00:00]}  Nxb3 {[%clk 0:00:00]} 24. Qxb3 {[%clk 0:00:00]}  Bxd5 {[%clk 0:00:00]} 25. cxd5 {[%clk 0:00:00]}  f5 {[%clk 0:00:00]} 26. exf5 {[%clk 0:00:00]}  gxf5 {[%clk 0:00:00]} 27. Qb6 {[%clk 0:00:00]}  e4 {[%clk 0:00:00]} 28. fxe4 {[%clk 0:00:00]}  fxe4 {[%clk 0:00:00]} 29. Bd4 {[%clk 0:00:00]}  Bf6 {[%clk 0:00:00]} 30. Be2 {[%clk 0:00:00]}  Bxd4+ {[%clk 0:00:00]} 31. Qxd4 {[%clk 0:00:00]}  Qe5 {[%clk 0:00:00]} 32. Qxe5 {[%clk 0:00:00]}  dxe5 {[%clk 0:00:00]} 33. Bxh5 {[%clk 0:00:00]}  Nf6 {[%clk 0:00:00]} 34. Be2 {[%clk 0:00:00]}  Kg7 {[%clk 0:00:00]} 35. d6 {[%clk 0:00:00]}  Rd8 {[%clk 0:00:00]} 36. Rd1 {[%clk 0:00:00]}  Kf7 {[%clk 0:00:00]} 37. Kf2 {[%clk 0:00:00]}  Ke6 {[%clk 0:00:00]} 38. Bc4+ {[%clk 0:00:00]}  Kf5 {[%clk 0:00:00]} 39. h3 {[%clk 0:00:00]}  Kf4 {[%clk 0:00:00]} 40. g3+ {[%clk 0:00:00]}  Kf5 {[%clk 0:00:00]} 41. Ke3 {[%clk 0:00:00]}  Ra8 {[%clk 0:00:00]} 42. d7 {[%clk 0:00:00]}  Ra3+ {[%clk 0:00:00]} 43. Kf2 {[%clk 0:00:00]}  e3+ {[%clk 0:00:00]} 44. Ke1 {[%clk 0:00:00]}  Nxd7 {[%clk 0:00:00]} 45. Rxd7 {[%clk 0:00:00]}  Ke4 {[%clk 0:00:00]} 46. Bd3+ {[%clk 0:00:00]}  Kf3 {[%clk 0:00:00]} 47. Be2+ {[%clk 0:00:00]}  Kxg3 {[%clk 0:00:00]} 0-1


[Site "https://www.chess.com"]

[Event "Titled Tuesday Blitz August 16 Late 2022"]
[White "Nazaretyan, Tigran"]
[Black "Rustemov, Alexander"]
[WhiteFideId "24162345"]
[BlackFideId "4119002"]
[WhiteElo "2183"]
[BlackElo "2791"]
[Result "1-0"]
[Round "04"]
[TimeControl "180+1"]
[Date "2022.08.16"]
[WhiteClock "0:00:43"]
[BlackClock "0:00:20"]

1. d4 {[%clk 0:03:00]}  f5 {[%clk 0:02:58]} 2. Nf3 {[%clk 0:02:59]}  Nf6 {[%clk 0:02:58]} 3. g3 {[%clk 0:02:59]}  g6 {[%clk 0:02:58]} 4. Bg2 {[%clk 0:03:00]}  Bg7 {[%clk 0:02:58]} 5. O-O {[%clk 0:03:01]}  O-O {[%clk 0:02:59]} 6. c3 {[%clk 0:03:00]}  e6 {[%clk 0:02:53]} 7. Nbd2 {[%clk 0:02:52]}  Nc6 {[%clk 0:02:50]} 8. Qc2 {[%clk 0:02:51]}  d5 {[%clk 0:02:48]} 9. b4 {[%clk 0:02:47]}  Ne4 {[%clk 0:02:46]} 10. b5 {[%clk 0:02:43]}  Na5 {[%clk 0:02:44]} 11. Ne5 {[%clk 0:02:42]}  b6 {[%clk 0:02:34]} 12. Ndf3 {[%clk 0:02:36]}  a6 {[%clk 0:02:32]} 13. a4 {[%clk 0:02:34]}  Bd7 {[%clk 0:02:31]} 14. Rb1 {[%clk 0:02:31]}  axb5 {[%clk 0:02:27]} 15. axb5 {[%clk 0:02:31]}  Qe8 {[%clk 0:02:28]} 16. Qd3 {[%clk 0:02:12]}  Nd6 {[%clk 0:02:26]} 17. Nxd7 {[%clk 0:02:08]}  Qxd7 {[%clk 0:02:26]} 18. Bf4 {[%clk 0:02:05]}  Nac4 {[%clk 0:02:22]} 19. Nd2 {[%clk 0:01:40]}  Nxd2 {[%clk 0:02:09]} 20. Bxd2 {[%clk 0:01:39]}  Ra2 {[%clk 0:02:01]} 21. Bf4 {[%clk 0:01:34]}  Nc4 {[%clk 0:01:58]} 22. Rb4 {[%clk 0:01:29]}  h6 {[%clk 0:01:40]} 23. Rxc4 {[%clk 0:01:28]}  dxc4 {[%clk 0:01:39]} 24. Qxc4 {[%clk 0:01:28]}  Ra7 {[%clk 0:01:37]} 25. h4 {[%clk 0:01:23]}  Kh7 {[%clk 0:01:37]} 26. e4 {[%clk 0:01:19]}  Qf7 {[%clk 0:01:29]} 27. exf5 {[%clk 0:01:10]}  exf5 {[%clk 0:01:29]} 28. Bd5 {[%clk 0:01:10]}  Qe7 {[%clk 0:01:29]} 29. Bc6 {[%clk 0:01:05]}  g5 {[%clk 0:01:22]} 30. hxg5 {[%clk 0:01:01]}  hxg5 {[%clk 0:01:22]} 31. Be5 {[%clk 0:00:59]}  Bxe5 {[%clk 0:01:19]} 32. Re1 {[%clk 0:00:59]}  Qf7 {[%clk 0:01:17]} 33. Bd5 {[%clk 0:00:58]}  Qh5 {[%clk 0:01:00]} 34. dxe5 {[%clk 0:00:53]}  Re8 {[%clk 0:00:49]} 35. Bf7 {[%clk 0:00:50]}  Qf3 {[%clk 0:00:25]} 36. Bxe8 {[%clk 0:00:48]}  Ra2 {[%clk 0:00:24]} 37. Qxa2 {[%clk 0:00:46]}  Qe2 {[%clk 0:00:23]} 38. Qf7+ {[%clk 0:00:44]}  Kh6 {[%clk 0:00:20]} 39. Qg6# {[%clk 0:00:43]} 1-0


[Site "https://www.chess.com"]

[Event "Titled Tuesday Blitz August 16 Late 2022"]
[White "Olenik Campa, Rudi"]
[Black "Levine, David"]
[WhiteFideId "14633264"]
[BlackFideId "2011611"]
[WhiteElo "2008"]
[BlackElo "2068"]
[Result "1-0"]
[Round "04"]
[TimeControl "180+1"]
[Date "2022.08.18"]
[WhiteClock "0:00:00"]
[BlackClock "0:00:00"]

1. e4 {[%clk 0:00:00]}  e5 {[%clk 0:00:00]} 2. Nf3 {[%clk 0:00:00]}  Nc6 {[%clk 0:00:00]} 3. Bb5 {[%clk 0:00:00]}  a6 {[%clk 0:00:00]} 4. Ba4 {[%clk 0:00:00]}  Nf6 {[%clk 0:00:00]} 5. O-O {[%clk 0:00:00]}  Be7 {[%clk 0:00:00]} 6. Re1 {[%clk 0:00:00]}  b5 {[%clk 0:00:00]} 7. Bb3 {[%clk 0:00:00]}  d6 {[%clk 0:00:00]} 8. c3 {[%clk 0:00:00]}  O-O {[%clk 0:00:00]} 9. d4 {[%clk 0:00:00]}  Bg4 {[%clk 0:00:00]} 10. Be3 {[%clk 0:00:00]}  Na5 {[%clk 0:00:00]} 11. Bc2 {[%clk 0:00:00]}  c5 {[%clk 0:00:00]} 12. h3 {[%clk 0:00:00]}  Bxf3 {[%clk 0:00:00]} 13. Qxf3 {[%clk 0:00:00]}  cxd4 {[%clk 0:00:00]} 14. cxd4 {[%clk 0:00:00]}  Nc4 {[%clk 0:00:00]} 15. Bc1 {[%clk 0:00:00]}  Rc8 {[%clk 0:00:00]} 16. Bb3 {[%clk 0:00:00]}  Na5 {[%clk 0:00:00]} 17. Be3 {[%clk 0:00:00]}  Nxb3 {[%clk 0:00:00]} 18. axb3 {[%clk 0:00:00]}  a5 {[%clk 0:00:00]} 19. d5 {[%clk 0:00:00]}  Rc2 {[%clk 0:00:00]} 20. Nc3 {[%clk 0:00:00]}  Rxb2 {[%clk 0:00:00]} 21. Nxb5 {[%clk 0:00:00]}  Rxb3 {[%clk 0:00:00]} 22. Na7 {[%clk 0:00:00]}  Nd7 {[%clk 0:00:00]} 23. Nc6 {[%clk 0:00:00]}  Re8 {[%clk 0:00:00]} 24. Nxd8 {[%clk 0:00:00]} 1-0


[Site "https://www.chess.com"]

[Event "Titled Tuesday Blitz August 16 Late 2022"]
[White "Omelja, Artem"]
[Black "Liu, Casper"]
[WhiteFideId "14119846"]
[BlackFideId "1454153"]
[WhiteElo "2382"]
[BlackElo "2025"]
[Result "1-0"]
[Round "04"]
[TimeControl "180+1"]
[Date "2022.08.18"]
[WhiteClock "0:00:00"]
[BlackClock "0:00:00"]

1. d4 {[%clk 0:00:00]}  Nf6 {[%clk 0:00:00]} 2. c4 {[%clk 0:00:00]}  g6 {[%clk 0:00:00]} 3. Nc3 {[%clk 0:00:00]}  Bg7 {[%clk 0:00:00]} 4. e4 {[%clk 0:00:00]}  d6 {[%clk 0:00:00]} 5. f3 {[%clk 0:00:00]}  O-O {[%clk 0:00:00]} 6. Nge2 {[%clk 0:00:00]}  e5 {[%clk 0:00:00]} 7. Be3 {[%clk 0:00:00]}  exd4 {[%clk 0:00:00]} 8. Nxd4 {[%clk 0:00:00]}  Nbd7 {[%clk 0:00:00]} 9. Qd2 {[%clk 0:00:00]}  c6 {[%clk 0:00:00]} 10. Be2 {[%clk 0:00:00]}  Re8 {[%clk 0:00:00]} 11. O-O {[%clk 0:00:00]}  Nc5 {[%clk 0:00:00]} 12. Rfd1 {[%clk 0:00:00]}  Nh5 {[%clk 0:00:00]} 13. Nxc6 {[%clk 0:00:00]}  bxc6 {[%clk 0:00:00]} 14. Bxc5 {[%clk 0:00:00]}  Qh4 {[%clk 0:00:00]} 15. Bxd6 {[%clk 0:00:00]}  Rd8 {[%clk 0:00:00]} 16. g3 {[%clk 0:00:00]}  Qh3 {[%clk 0:00:00]} 17. Qe3 {[%clk 0:00:00]}  Be6 {[%clk 0:00:00]} 18. Bf1 {[%clk 0:00:00]} 1-0


[Site "https://www.chess.com"]

[Event "Titled Tuesday Blitz August 16 Late 2022"]
[White "Oro, Luis"]
[Black "Al Hosani, Omran"]
[WhiteFideId "104094"]
[BlackFideId "9308733"]
[WhiteElo "2255"]
[BlackElo "2236"]
[Result "0-1"]
[Round "04"]
[TimeControl "180+1"]
[Date "2022.08.18"]
[WhiteClock "0:00:00"]
[BlackClock "0:00:00"]

1. e4 {[%clk 0:00:00]}  c5 {[%clk 0:00:00]} 2. Nf3 {[%clk 0:00:00]}  Nc6 {[%clk 0:00:00]} 3. d4 {[%clk 0:00:00]}  cxd4 {[%clk 0:00:00]} 4. Nxd4 {[%clk 0:00:00]}  Nf6 {[%clk 0:00:00]} 5. Nc3 {[%clk 0:00:00]}  e5 {[%clk 0:00:00]} 6. Ndb5 {[%clk 0:00:00]}  d6 {[%clk 0:00:00]} 7. Nd5 {[%clk 0:00:00]}  Nxd5 {[%clk 0:00:00]} 8. exd5 {[%clk 0:00:00]}  Ne7 {[%clk 0:00:00]} 9. c4 {[%clk 0:00:00]}  a6 {[%clk 0:00:00]} 10. Qa4 {[%clk 0:00:00]}  axb5 {[%clk 0:00:00]} 11. Qxa8 {[%clk 0:00:00]}  g6 {[%clk 0:00:00]} 12. Bd3 {[%clk 0:00:00]}  Bg7 {[%clk 0:00:00]} 13. O-O {[%clk 0:00:00]}  O-O {[%clk 0:00:00]} 14. Qa3 {[%clk 0:00:00]}  f5 {[%clk 0:00:00]} 15. f3 {[%clk 0:00:00]}  bxc4 {[%clk 0:00:00]} 16. Bxc4 {[%clk 0:00:00]}  b5 {[%clk 0:00:00]} 17. Be2 {[%clk 0:00:00]}  Nxd5 {[%clk 0:00:00]} 18. Qb3 {[%clk 0:00:00]}  Be6 {[%clk 0:00:00]} 19. Rd1 {[%clk 0:00:00]}  Nc7 {[%clk 0:00:00]} 20. Qb4 {[%clk 0:00:00]}  d5 {[%clk 0:00:00]} 21. Bd2 {[%clk 0:00:00]}  d4 {[%clk 0:00:00]} 22. Rac1 {[%clk 0:00:00]}  e4 {[%clk 0:00:00]} 23. Be1 {[%clk 0:00:00]}  d3 {[%clk 0:00:00]} 24. Bf1 {[%clk 0:00:00]}  Nd5 {[%clk 0:00:00]} 25. Qxb5 {[%clk 0:00:00]}  Ne3 {[%clk 0:00:00]} 26. Rc6 {[%clk 0:00:00]}  Nxd1 {[%clk 0:00:00]} 27. Rxe6 {[%clk 0:00:00]}  d2 {[%clk 0:00:00]} 28. Bg3 {[%clk 0:00:00]}  f4 {[%clk 0:00:00]} 29. Qb3 {[%clk 0:00:00]}  Qd4+ {[%clk 0:00:00]} 0-1


[Site "https://www.chess.com"]

[Event "Titled Tuesday Blitz August 16 Late 2022"]
[White "Ozalp, Burak"]
[Black "Levin, Anthony"]
[WhiteFideId "6314210"]
[BlackFideId "30940680"]
[WhiteElo "1854"]
[BlackElo "1940"]
[Result "1-0"]
[Round "04"]
[TimeControl "180+1"]
[Date "2022.08.18"]
[WhiteClock "0:00:00"]
[BlackClock "0:00:00"]

1. e4 {[%clk 0:00:00]}  c5 {[%clk 0:00:00]} 2. Nf3 {[%clk 0:00:00]}  d6 {[%clk 0:00:00]} 3. d4 {[%clk 0:00:00]}  cxd4 {[%clk 0:00:00]} 4. Nxd4 {[%clk 0:00:00]}  Nf6 {[%clk 0:00:00]} 5. Nc3 {[%clk 0:00:00]}  a6 {[%clk 0:00:00]} 6. Bg5 {[%clk 0:00:00]}  Nbd7 {[%clk 0:00:00]} 7. Qe2 {[%clk 0:00:00]}  h6 {[%clk 0:00:00]} 8. Bh4 {[%clk 0:00:00]}  g6 {[%clk 0:00:00]} 9. f4 {[%clk 0:00:00]}  e5 {[%clk 0:00:00]} 10. O-O-O {[%clk 0:00:00]}  Be7 {[%clk 0:00:00]} 11. Nf3 {[%clk 0:00:00]}  Qc7 {[%clk 0:00:00]} 12. Bxf6 {[%clk 0:00:00]}  Nxf6 {[%clk 0:00:00]} 13. fxe5 {[%clk 0:00:00]}  dxe5 {[%clk 0:00:00]} 14. Nd5 {[%clk 0:00:00]}  Nxd5 {[%clk 0:00:00]} 15. exd5 {[%clk 0:00:00]}  Bd6 {[%clk 0:00:00]} 16. h4 {[%clk 0:00:00]}  Bg4 {[%clk 0:00:00]} 17. Rd3 {[%clk 0:00:00]}  O-O {[%clk 0:00:00]} 18. h5 {[%clk 0:00:00]}  e4 {[%clk 0:00:00]} 19. Qxe4 {[%clk 0:00:00]}  Bf5 {[%clk 0:00:00]} 20. Qd4 {[%clk 0:00:00]}  Bxd3 {[%clk 0:00:00]} 21. Bxd3 {[%clk 0:00:00]}  g5 {[%clk 0:00:00]} 22. Qe4 {[%clk 0:00:00]}  f5 {[%clk 0:00:00]} 23. Qe6+ {[%clk 0:00:00]}  Kh8 {[%clk 0:00:00]} 24. Qxh6+ {[%clk 0:00:00]}  Kg8 {[%clk 0:00:00]} 25. Qe6+ {[%clk 0:00:00]}  Kh8 {[%clk 0:00:00]} 26. Kb1 {[%clk 0:00:00]}  Bf4 {[%clk 0:00:00]} 27. Bxf5 {[%clk 0:00:00]}  Qd6 {[%clk 0:00:00]} 28. Nd4 {[%clk 0:00:00]}  Qxe6 {[%clk 0:00:00]} 29. Bxe6 {[%clk 0:00:00]}  Be5 {[%clk 0:00:00]} 30. Nf5 {[%clk 0:00:00]}  Rae8 {[%clk 0:00:00]} 31. g4 {[%clk 0:00:00]}  Bf4 {[%clk 0:00:00]} 32. c4 {[%clk 0:00:00]}  b5 {[%clk 0:00:00]} 33. b3 {[%clk 0:00:00]}  bxc4 {[%clk 0:00:00]} 34. bxc4 {[%clk 0:00:00]}  Rb8+ {[%clk 0:00:00]} 35. Kc2 {[%clk 0:00:00]}  Be5 {[%clk 0:00:00]} 36. Rb1 {[%clk 0:00:00]}  Rxb1 {[%clk 0:00:00]} 37. Kxb1 {[%clk 0:00:00]}  Rb8+ {[%clk 0:00:00]} 38. Kc2 {[%clk 0:00:00]}  Rb2+ {[%clk 0:00:00]} 39. Kd3 {[%clk 0:00:00]}  Rxa2 {[%clk 0:00:00]} 40. c5 {[%clk 0:00:00]}  Bf6 {[%clk 0:00:00]} 41. d6 {[%clk 0:00:00]}  Ra3+ {[%clk 0:00:00]} 42. Ke4 {[%clk 0:00:00]}  a5 {[%clk 0:00:00]} 43. Kd5 {[%clk 0:00:00]} 1-0


[Site "https://www.chess.com"]

[Event "Titled Tuesday Blitz August 16 Late 2022"]
[White "Ozates, Tuna"]
[Black "Riehle, Marco"]
[WhiteFideId "6354521"]
[BlackFideId "12904392"]
[WhiteElo "1887"]
[BlackElo "2462"]
[Result "0-1"]
[Round "04"]
[TimeControl "180+1"]
[Date "2022.08.18"]
[WhiteClock "0:00:00"]
[BlackClock "0:00:00"]

1. e4 {[%clk 0:00:00]}  e5 {[%clk 0:00:00]} 2. Nf3 {[%clk 0:00:00]}  Nf6 {[%clk 0:00:00]} 3. Nc3 {[%clk 0:00:00]}  Nc6 {[%clk 0:00:00]} 4. a3 {[%clk 0:00:00]}  Bc5 {[%clk 0:00:00]} 5. Nxe5 {[%clk 0:00:00]}  Nxe5 {[%clk 0:00:00]} 6. d4 {[%clk 0:00:00]}  Bd6 {[%clk 0:00:00]} 7. dxe5 {[%clk 0:00:00]}  Bxe5 {[%clk 0:00:00]} 8. Bd3 {[%clk 0:00:00]}  O-O {[%clk 0:00:00]} 9. f4 {[%clk 0:00:00]}  Bxc3+ {[%clk 0:00:00]} 10. bxc3 {[%clk 0:00:00]}  Nxe4 {[%clk 0:00:00]} 11. Bxe4 {[%clk 0:00:00]}  Re8 {[%clk 0:00:00]} 12. O-O {[%clk 0:00:00]}  Rxe4 {[%clk 0:00:00]} 13. f5 {[%clk 0:00:00]}  d5 {[%clk 0:00:00]} 14. f6 {[%clk 0:00:00]}  Bg4 {[%clk 0:00:00]} 15. Qd2 {[%clk 0:00:00]}  Be2 {[%clk 0:00:00]} 16. Rf2 {[%clk 0:00:00]}  Bc4 {[%clk 0:00:00]} 17. h3 {[%clk 0:00:00]}  Qd6 {[%clk 0:00:00]} 18. a4 {[%clk 0:00:00]}  Rae8 {[%clk 0:00:00]} 19. Ba3 {[%clk 0:00:00]}  Qg3 {[%clk 0:00:00]} 20. Be7 {[%clk 0:00:00]}  gxf6 {[%clk 0:00:00]} 21. Rf3 {[%clk 0:00:00]}  Qg6 {[%clk 0:00:00]} 22. Rxf6 {[%clk 0:00:00]}  Qg7 {[%clk 0:00:00]} 23. Rf5 {[%clk 0:00:00]}  Re2 {[%clk 0:00:00]} 24. Qxe2 {[%clk 0:00:00]}  Bxe2 {[%clk 0:00:00]} 25. Bf6 {[%clk 0:00:00]}  Qh6 {[%clk 0:00:00]} 26. Re1 {[%clk 0:00:00]}  Re6 {[%clk 0:00:00]} 27. Bd4 {[%clk 0:00:00]}  Bc4 {[%clk 0:00:00]} 28. Rxe6 {[%clk 0:00:00]}  fxe6 {[%clk 0:00:00]} 29. Rf6 {[%clk 0:00:00]}  Qc1+ {[%clk 0:00:00]} 30. Kh2 {[%clk 0:00:00]}  Qxc2 {[%clk 0:00:00]} 31. Rxe6 {[%clk 0:00:00]}  Qxa4 {[%clk 0:00:00]} 32. Re7 {[%clk 0:00:00]}  Qc6 {[%clk 0:00:00]} 33. Rg7+ {[%clk 0:00:00]}  Kf8 {[%clk 0:00:00]} 34. Rxh7 {[%clk 0:00:00]}  a5 {[%clk 0:00:00]} 35. g3 {[%clk 0:00:00]}  a4 {[%clk 0:00:00]} 36. h4 {[%clk 0:00:00]}  a3 {[%clk 0:00:00]} 37. Rh8+ {[%clk 0:00:00]}  Kf7 {[%clk 0:00:00]} 38. h5 {[%clk 0:00:00]}  a2 {[%clk 0:00:00]} 39. Ra8 {[%clk 0:00:00]}  Ba6 {[%clk 0:00:00]} 0-1


[Site "https://www.chess.com"]